Cogmind - Beta 11 @@@ ROGUE MODE // 2022.04.04 @ 18:07:22 Player: ktur Result: Self-destructed Performance ------------- Evolutions (2) 1000 Regions Visited (7) 1400 Robots Destroyed (62) 310 Value Destroyed (1789) 1789 Prototype IDs (29) 580 Alien Tech Used (0) 0 Bonus (439) 439 TOTAL SCORE: 5518 Bonus ------- Follower Combat Kills 211 Aligned with FarCom 300 Friendly Fire -72 Cogmind --------- Core Integrity 444/550 Matter 161/300 Energy 35/265 System Corruption 0% Temperature Cool (1) Movement Treading (160) Location -8/Materials Parts ------- > --- POWER (1) -------- Reinforced Ion Engine > --- PROPULSION (3) --- Light Treads Light Treads Light Treads > --- UTILITY (5) ------ Large Storage Unit Salvage Targeting Computer Advanced Targeting Computer > --- WEAPON (2) ------- Minigun Advanced EMP Blaster > --- INVENTORY (15) --- Light Nuclear Core Light Nuclear Core Light Treads Light Treads Improved Flight Unit Medium Storage Unit Weight Redist. System Terrain Scan Processor Hacking Suite Hacking Suite Shotgun Advanced EMP Blaster Rocket Launcher Field Lobotomy Kit (5) Peak State ------------ > --- POWER ------------ Reinforced Ion Engine > --- PROPULSION ------- Light Treads Light Treads Light Treads > --- UTILITY ---------- Large Storage Unit Salvage Targeting Computer Advanced Targeting Computer Improved Weapon Shielding Hardened Medium Armor Plating > --- WEAPON ----------- Minigun Advanced EMP Blaster > --- INVENTORY -------- Light Nuclear Core Light Nuclear Core Light Treads Light Treads VTOL Module VTOL Module Improved Flight Unit Medium Storage Unit Weight Redist. System Hacking Suite Hacking Suite Minigun Advanced EMP Blaster Rocket Launcher Field Lobotomy Kit [Rating: 28] Favorites ----------- Power Improved Ion Engine Engine Improved Ion Engine Propulsion Light Treads Treads Light Treads Wheel Compact Wheel Flight Unit Improved Flight Unit Utility Large Storage Unit Device Disposable Heat Sink Storage Large Storage Unit Processor Salvage Targeting Computer Protection Hardened Medium Armor Plating Weapon Improved Medium Laser Energy Gun Improved Medium Laser Ballistic Gun Minigun Launcher Advanced EMP Blaster Build | -11 -10 -10 -9 -9 -9 -8 -8 ------- Run | Scr Mat Min Mat Min Exi Min Mat Slots Evolved 4 | . . . 2 . . . 2 Power . | . . . . . . . . Propulsion 1 | . . . 1 . . . . Utility 3 | . . . 1 . . . 2 Weapon . | . . . . . . . . Parts Attached 51 | 6 4 . 18 7 . 3 13 Power 3 | 1 . . 1 . . 1 . Engine 3 | 1 . . 1 . . 1 . Core . | . . . . . . . . Reactor . | . . . . . . . . Propulsion 19 | 2 . . 7 4 . 2 4 Treads 16 | 2 . . 6 2 . 2 4 Leg . | . . . . . . . . Wheel 2 | . . . . 2 . . . Hover . | . . . . . . . . Flight 1 | . . . 1 . . . . Utility 12 | 1 2 . 4 1 . . 4 Device 2 | . 1 . 1 . . . . Storage 2 | 1 1 . . . . . . Processor 4 | . . . 2 . . . 2 Hackware . | . . . . . . . . Protection 4 | . . . 1 1 . . 2 Artifact . | . . . . . . . . Weapon 17 | 2 2 . 6 2 . . 5 Energy Gun 3 | . 2 . 1 . . . . Energy Cannon . | . . . . . . . . Ballistic Gun 10 | 2 . . 4 2 . . 2 Ballistic Cannon . | . . . . . . . . Launcher 4 | . . . 1 . . . 3 Special Weapon . | . . . . . . . . Impact Weapon . | . . . . . . . . Slashing Weapon . | . . . . . . . . Piercing Weapon . | . . . . . . . . Special Melee Weapon . | . . . . . . . . Unidentified Prototypes 4 | . 1 . 2 . . . 1 Parts Lost 12 | . . . . 6 . 1 5 Power 1 | . . . . . . 1 . Propulsion 5 | . . . . 3 . . 2 Utility 4 | . . . . 1 . . 3 Weapon 2 | . . . . 2 . . . Highest Loss Streak 6 | . . . . 6 . 1 3 To Critical Strikes . | . . . . . . . . Average Slot Usage (%) 98 | . 99 100 99 95 100 98 96 Engine 11 | . 14 14 11 11 11 9 9 Treads 27 | . 28 28 32 24 11 30 26 Wheel 2 | . . . . 5 22 2 . Device 6 | . 13 14 7 . . . . Storage 11 | . 14 14 11 11 11 11 9 Processor 7 | . . . 8 11 11 11 15 Protection 6 | . . . 5 10 11 11 17 Energy Gun 11 | . 26 28 11 . . . . Ballistic Gun 10 | . 1 . 10 21 22 22 14 Naked Turns . | . . . . . . . . Heaviest Build 54 | 13 32 32 42 41 41 44 54 Greatest Support 63 | 40 40 40 60 60 32 63 63 Greatest Overweight (x) 2 | . . . 1 2 1 1 1 Average Overweight (x) . | . . . . . 1 . . Largest Inventory Capacity 15 | 8 15 15 15 15 15 15 15 Average Capacity 13 | 7 8 15 15 15 15 15 15 Most Carried 15 | 6 10 15 15 15 14 15 15 Average Carried 12 | 3 8 13 14 13 11 14 14 Final Capacity 15 | 8 15 15 15 15 15 15 15 Final Carried 15 | 6 10 15 15 11 12 15 14 Class Distribution -------------------- 75% | Mutant 24% | Scavenger-Mutant Dominant Class ---------------- Mutant | -10/Materials Mutant | -10/Mines Scavenger-Mutant | -9/Materials Mutant | -9/Mines Mutant | -9/Exiles Mutant | -8/Mines Scavenger-Mutant | -8/Materials Resources | -11 -10 -10 -9 -9 -9 -8 -8 ----------- Run | Scr Mat Min Mat Min Exi Min Mat Matter Collected 1100 | 183 111 . 343 135 . 105 223 Remotely . | . . . . . . . . Salvage Created 2265 | . 283 131 635 29 . 172 1015 Parts 131 | . 16 5 42 . . 10 58 Haulers Intercepted 3 | . 1 . 1 . . . 1 Recyclers Shooed 3 | . 2 1 . . . . . Parts Field Recycled . | . . . . . . . . Retrieved Matter . | . . . . . . . . Parts Self-Destructed . | . . . . . . . . Prevented . | . . . . . . . . Kills | -11 -10 -10 -9 -9 -9 -8 -8 ------- Run | Scr Mat Min Mat Min Exi Min Mat Combat Hostiles Destroyed 45 | . 5 5 13 1 . 3 18 Guns 29 | . 5 5 9 1 . 3 6 AOE 14 | . . . 3 . . . 11 Classes Destroyed 12 | . 5 . 2 1 . 2 2 Worker 1 | . . . . . . . 1 Builder 7 | . . . 2 . . . 5 Tunneler 1 | . . . . . . 1 . Hauler 3 | . 1 . 1 . . . 1 Recycler 1 | . 1 . . . . . . Operator 4 | . 2 . 2 . . . . Swarmer 11 | . 2 3 3 . . . 3 Grunt 22 | . 3 2 6 . . 2 9 Brawler 1 | . . . . . . 1 . Sentry 8 | . . . 4 . . . 4 Demolisher 1 | . . . . 1 . . . Specialist 2 | . . . . . . . 2 Best Kill Streak 14 | . 3 3 5 1 . 3 14 Combat Bots Only 9 | . 2 3 4 1 . 3 9 Max Kills in Single Turn 3 | . 1 1 3 1 . 1 3 Gunslinging 1 | . . . 1 . . . . Exploded 3 | . . . 3 . . . 2 Melee . | . . . . . . . . Uniques/NPCs Destroyed . | . . . . . . . . Combat | -11 -10 -10 -9 -9 -9 -8 -8 -------- Run | Scr Mat Min Mat Min Exi Min Mat Damage Taken 3346 | . 211 175 463 1239 . 75 1183 Core 388 | . 45 38 43 156 . . 106 Absorbed by Shields . | . . . . . . . . Redirected to Shielding 102 | . . . . . . . 102 Regen/Repaired (Parts) 118 | . . . 118 . . . . Core Remaining (%) 72 | 100 . 66 . . . 50 . Volleys Fired 139 | . 28 12 39 11 . 10 39 Largest 2 | . 2 2 2 2 . 2 2 Hottest 112 | . 112 112 112 50 . 50 50 Shots Fired 257 | . 53 24 77 22 . 20 61 Gun 239 | . 53 24 76 22 . 20 44 Cannon . | . . . . . . . . Launcher 18 | . . . 1 . . . 17 Special . | . . . . . . . . Kinetic 131 | . . . 45 22 . 20 44 Thermal 108 | . 53 24 31 . . . . Explosive 1 | . . . 1 . . . . Electromagnetic 17 | . . . . . . . 17 Robot Hit Streak 38 | . 6 4 38 7 . 5 6 Robot Miss Streak 5 | . 5 2 1 5 . 2 4 Penetration Max . | . . . . . . . . Secondary Targets 6 | . . 2 2 1 . . 1 Max Gunslinging Chain 1 | . . 1 1 1 . . 1 Shots Hit Robots 160 | . 26 14 63 13 . 14 30 Core Hits 91 | . 11 6 24 4 . 7 39 Critical Kills . | . . . . . . . . Critical Parts Destroyed 2 | . . . 1 . . . 1 Critical Strikes 10 | . 2 2 5 . . . 1 Burn 8 | . 2 2 4 . . . . Destroy 2 | . . . 1 . . . 1 Melee Attacks . | . . . . . . . . Impact . | . . . . . . . . Slashing . | . . . . . . . . Piercing . | . . . . . . . . Sneak Attacks . | . . . . . . . . Combat Hostiles . | . . . . . . . . Follow-up Attacks . | . . . . . . . . Damage Inflicted 4280 | . 480 246 1322 223 . 235 1774 Guns 2726 | . 476 238 1061 221 . 234 496 Cannons . | . . . . . . . . Explosions 1511 | . . . 238 . . . 1273 Melee . | . . . . . . . . Ramming 43 | . 4 8 23 2 . 1 5 Kinetic 1523 | . . . 572 221 . 234 496 Thermal 1501 | . 476 238 489 . . . 298 Explosive 143 | . . . 143 . . . . Electromagnetic 1070 | . . . 95 . . . 975 Impact . | . . . . . . . . Slashing . | . . . . . . . . Piercing . | . . . . . . . . Highest Corruption . | . . . . . . . . Average Corruption . | . . . . . . . . Corruption Purged . | . . . . . . . . Corruption Blocked . | . . . . . . . . Overload Shots . | . . . . . . . . Overflow Damage 13 | . . . 8 . . . 5 Projectiles . | . . . . . . . . Explosions 13 | . . . 8 . . . 5 Melee . | . . . . . . . . Knockbacks . | . . . . . . . . Impact . | . . . . . . . . Kinetic . | . . . . . . . . Secondary . | . . . . . . . . Self-Inflicted Damage 12 | . . . . . . . 12 Shots 1 | . . . . . . . 1 Rammed 11 | . 3 2 4 1 . . 1 Targets Rammed 12 | . 3 2 4 1 . 1 1 Kicked . | . . . . . . . . Crushed 1 | . . . . . . 1 . Highest Temperature 272 | . 197 198 114 46 . 44 272 Average Temperature 67 | . 84 116 28 21 . 15 72 Received Heat Transfer 633 | . 51 66 189 12 . 27 288 Siege Activations . | . . . . . . . . Robots Corrupted 1 | . . . . . . . 1 Combat Hostiles 1 | . . . . . . . 1 Parts Fried 5 | . . . . . . . 5 Impact Corruptions . | . . . . . . . . Robots Melted 2 | . . . 2 . . . . Combat Hostiles 1 | . . . 1 . . . . Parts Melted 15 | . 5 3 7 . . . . Heat Transferred 3569 | . 1184 666 1369 . . . 350 Parts Sabotaged . | . . . . . . . . Parts Stolen . | . . . . . . . . Parts Stripped . | . . . . . . . . Power Chain Reactions 5 | . . . . . . . 5 Missiles Intercepted . | . . . . . . . . Alert | -11 -10 -10 -9 -9 -9 -8 -8 ------- Run | Scr Mat Min Mat Min Exi Min Mat Peak Influence 316 | . 83 179 316 123 . 140 304 Initial 123 | . . 23 5 123 . . 54 Average 96 | . 23 127 128 14 . 133 117 Maximum Alert Level 1 | . . . 1 . . . 1 Low Security (%) 91 | 100 100 100 80 100 . 100 83 Level 1 8 | . . . 19 . . . 16 Level 2 . | . . . . . . . . Level 3 . | . . . . . . . . Level 4 . | . . . . . . . . Level 5 . | . . . . . . . . High Security . | . . . . . . . . Max Security . | . . . . . . . . Squads Dispatched 7 | . 1 . 2 . . . 4 Investigation 2 | . . . 1 . . . 1 Extermination . | . . . . . . . . Reinforcement 5 | . 1 . 1 . . . 3 Assault . | . . . . . . . . Garrison . | . . . . . . . . Intercept . | . . . . . . . . Searches Triggered . | . . . . . . . . Construction Impeded 1 | . . . . . . . 1 Haulers Reinforced . | . . . . . . . . Active Scanning Responses . | . . . . . . . . Cargo Convoy Interrupts . | . . . . . . . . Stealth | -11 -10 -10 -9 -9 -9 -8 -8 --------- Run | Scr Mat Min Mat Min Exi Min Mat Distress Signals . | . . . . . . . . Communications Jammed . | . . . . . . . . Distress Signals . | . . . . . . . . Times Spotted 82 | . 16 7 25 6 . 3 25 Peak Tracking Total 5 | . 5 3 3 3 . 3 4 Tactical Retreats 3 | . . . 1 . . . 2 Traps | -11 -10 -10 -9 -9 -9 -8 -8 ------- Run | Scr Mat Min Mat Min Exi Min Mat Traps Triggered 1 | . . . . . . . 1 Indirectly 1 | . . . . . . . 1 Trap Hack Attempts . | . . . . . . . . Triggered . | . . . . . . . . Disarmed . | . . . . . . . . Reprogrammed . | . . . . . . . . Reused . | . . . . . . . . Traps Extracted . | . . . . . . . . Installed . | . . . . . . . . Triggered . | . . . . . . . . Machines | -11 -10 -10 -9 -9 -9 -8 -8 ---------- Run | Scr Mat Min Mat Min Exi Min Mat Machines Disabled 8 | . 2 . 2 . . 4 . Max in Single Turn 1 | . 1 . 1 . . 1 . Machines Sabotaged . | . . . . . . . . Garrisons Compromised . | . . . . . . . . Overloaded Fab Kills . | . . . . . . . . Hacking | -11 -10 -10 -9 -9 -9 -8 -8 --------- Run | Scr Mat Min Mat Min Exi Min Mat Machines Accessed 16 | . 3 . 7 1 1 . 4 Terminals 13 | . 3 . 5 1 . . 4 Fabricators . | . . . . . . . . Repair Stations 2 | . . . 2 . . . . Recycling Units . | . . . . . . . . Scanalyzers . | . . . . . . . . Garrison Access . | . . . . . . . . Total Hacks 36 | . 6 . 18 2 1 . 9 Successful 15 | . 3 . 8 1 1 . 2 Failed 21 | . 3 . 10 1 . . 7 Catastrophic 7 | . . . 3 1 . . 3 Database Lockouts . | . . . . . . . . Manual 27 | . 4 . 11 2 1 . 9 Terminals 32 | . 6 . 15 2 . . 9 Fabricators . | . . . . . . . . Repair Stations 3 | . . . 3 . . . . Recycling Units . | . . . . . . . . Scanalyzers . | . . . . . . . . Garrison Access . | . . . . . . . . Terminal Hacks 10 | . 2 . 4 1 1 . 2 Robot Analysis 1 | . . . 1 . . . . Prototype ID Bank 1 | . 1 . . . . . . Level Access Points 1 | . . . . . . . 1 Alert Level 1 | . . . 1 . . . . Unreport Threat 5 | . 1 . 2 1 . . 1 EX-Prototype ID Bank 1 | . . . . . 1 . . Fabricator Hacks . | . . . . . . . . Repair Station Hacks 2 | . . . 2 . . . . Scan Component 1 | . . . 1 . . . . Repair 1 | . . . 1 . . . . Recycling Unit Hacks . | . . . . . . . . Scanalyzer . | . . . . . . . . Garrison Access Hacks . | . . . . . . . . Unauthorized Hacks 3 | . 1 . 2 . . . . Terminals 3 | . 1 . 2 . . . . Assimilate 1 | . . . 1 . . . . Operators 2 | . 1 . 1 . . . . Fabricators . | . . . . . . . . Repair Stations . | . . . . . . . . Recycling Units . | . . . . . . . . Scanalyzers . | . . . . . . . . Garrison Access . | . . . . . . . . Data Cores Recovered 1 | . 1 . . . . . . Used . | . . . . . . . . Hacking Detections 13 | . 3 . 5 1 . . 4 Full Trace Events 1 | . . . 1 . . . . Feedback Events . | . . . . . . . . Feedback Blocked . | . . . . . . . . Robot Schematics Acquired . | . . . . . . . . Robots Built . | . . . . . . . . Authchips . | . . . . . . . . Time . | . . . . . . . . Total Robot Build Rating . | . . . . . . . . Part Schematics Acquired . | . . . . . . . . Parts Built . | . . . . . . . . Authchips . | . . . . . . . . Time . | . . . . . . . . Total Part Build Rating . | . . . . . . . . Parts Repaired 1 | . . . 1 . . . . Time 26 | . . . 26 . . . . Parts Recycled . | . . . . . . . . Recycled Matter . | . . . . . . . . Retrieved Matter . | . . . . . . . . Retrieved Components . | . . . . . . . . Parts Scanalyzed . | . . . . . . . . Part Schematics Acquired . | . . . . . . . . Parts Damaged . | . . . . . . . . Bothacking | -11 -10 -10 -9 -9 -9 -8 -8 ------------ Run | Scr Mat Min Mat Min Exi Min Mat Used RIF Installer . | . . . . . . . . Robots Hacked . | . . . . . . . . Non-combat . | . . . . . . . . Combat . | . . . . . . . . Robot Hacks Applied . | . . . . . . . . Relay Couplers Released . | . . . . . . . . Fabnet Peak Effective % . | . . . . . . . . Robots Rewired . | . . . . . . . . Allies Hacked . | . . . . . . . . Hacks Repelled . | . . . . . . . . Allies | -11 -10 -10 -9 -9 -9 -8 -8 -------- Run | Scr Mat Min Mat Min Exi Min Mat Total Allies 4 | . . 3 1 . . . . Largest Group 3 | . . 3 2 . . . . Highest-Rated Group 40 | . . 40 32 . . . . Highest-Rated Ally 16 | . . 16 16 . . . . Total Orders . | . . . . . . . . Ally Attacks 32 | . . 10 22 . . . . Total Damage 362 | . . 143 219 . . . . Kills 7 | . . 2 5 . . . . Allies Corrupted . | . . . . . . . . Allies Melted . | . . . . . . . . Intel | -11 -10 -10 -9 -9 -9 -8 -8 ------- Run | Scr Mat Min Mat Min Exi Min Mat Robot Analysis Total 1 | . . . 1 . . . . Derelict Logs Recovered 2 | . . 2 . . . . . Drone Launches . | . . . . . . . . Drone Recoveries . | . . . . . . . . Exploration | -11 -10 -10 -9 -9 -9 -8 -8 ------------- Run | Scr Mat Min Mat Min Exi Min Mat Turns Passed 3416 | 86 548 467 987 250 253 371 454 Spaces Moved 1824 | 52 276 249 485 145 218 214 185 Core 10 | 10 . . . . . . . Treads 1525 | 42 276 249 485 88 . 200 185 Legs . | . . . . . . . . Wheels 289 | . . . . 57 218 14 . Hover . | . . . . . . . . Flight . | . . . . . . . . Fastest Speed 50 | 50 160 160 160 115 115 115 160 Average Speed 153 | 138 160 160 160 145 115 157 165 Slowest Speed 240 | 160 160 160 240 240 115 160 240 Overloaded Moves . | . . . . . . . . Propulsion Burnouts . | . . . . . . . . Robots Hopped . | . . . . . . . . Cave-ins Triggered . | . . . . . . . . Exploration Rate (%) 40 | 4 47 40 48 31 60 70 21 Regions Visited 7 Branch Regions 4 Pre-discovered Areas . | . . . . . . . . Known Exits Taken . | . . . . . . . . Unknown Exits Taken 7 | 1 1 1 1 1 1 1 . Scrap Searched 4 | . . 1 . 2 . 1 . Spaces Dug . | . . . . . . . . Terrain Destroyed 25 | . . . . . . . 25 Melee . | . . . . . . . . Projectile . | . . . . . . . . AOE 25 | . . . . . . . 25 Terrain Rammed . | . . . . . . . . Walls Destroyed . | . . . . . . . . Machines Disabled . | . . . . . . . . Actions | -11 -10 -10 -9 -9 -9 -8 -8 --------- Run | Scr Mat Min Mat Min Exi Min Mat Total 2210 | 63 330 294 628 165 220 232 278 Wait 97 | . 9 21 46 . . . 21 Move 1817 | 51 275 248 484 144 217 213 185 Hop . | . . . . . . . . Pick Up 50 | 6 6 8 16 1 2 4 7 Fast Attach 22 | 6 2 . 4 3 . 1 6 Attach 12 | . . . 6 4 . . 2 Detach 4 | . 1 . 2 . . . 1 Swap 17 | . 2 . 8 . . 2 5 Drop 40 | . 4 3 19 1 1 1 11 Fire 139 | . 28 12 39 11 . 10 39 Melee . | . . . . . . . . Ram . | . . . . . . . . Kick . | . . . . . . . . Crush 12 | . 3 2 4 1 . 1 1 Escape Stasis . | . . . . . . . . Rewire . | . . . . . . . . Trap . | . . . . . . . . Miscellaneous . | . . . . . . . . Route ------- -11/Scrapyard -10/Materials -10/Mines -9/Materials (discovered 3 exits: *Mat / *Min / *Sto) -9/Mines -9/Exiles -8/Mines -8/Materials (discovered 3 exits: Fac x3) History --------- Turn | Location | Event 2 | -11/Scrapyard | Discovered new exit (range 16) 87 | -11/Scrapyard | Entered Materials 220 | -10/Materials | Discovered new exit (range 8) 306 | -10/Materials | Build established: Mutant 635 | -10/Materials | Entered Mines 675 | -10/Mines | Learned location of 1 exit from Materials 723 | -10/Mines | Learned Materials emergency access door positions 842 | -10/Mines | Assisted by bots powering up and referring to "LRC-V3" 1016 | -10/Mines | Discovered new exit (range 9) 1042 | -10/Mines | Joined a pair of Derelicts in attacking an 0b10 outpost 1102 | -10/Mines | Entered Materials 1102 | -9/Materials | Accompanied by 2 allies 1102 | -9/Materials | Evolved 2 slots: Propulsion x1, Utility x1 1103 | -9/Materials | Identified exit to Storage 1390 | -9/Materials | Repaired Lgt. Treads? 1536 | -9/Materials | Discovered new exit (range 15) 1657 | -9/Materials | Build established: Scavenger-Mutant 1906 | -9/Materials | Discovered new exit (range 7) 2089 | -9/Materials | Entered Mines 2111 | -9/Mines | Met a Derelict bent on vengeance 2137 | -9/Mines | Assembled infested the area 2184 | -9/Mines | Build established: Mutant 2273 | -9/Mines | Lost 6 parts (3n1u2w) 2334 | -9/Mines | Discovered new exit (range 5) 2339 | -9/Mines | Entered Exiles 2367 | -9/Exiles | Met 8R-AWN 2385 | -9/Exiles | Met EX-HEX 2419 | -9/Exiles | Met EX-BIN 2434 | -9/Exiles | Aligned with FarCom system 2435 | -9/Exiles | Given EX-Vault access code 2464 | -9/Exiles | Opened EX-Vault 2472 | -9/Exiles | Found Field Lobotomy Kit 2475 | -9/Exiles | Found AWS/Thermal 2508 | -9/Exiles | Warned to stay clear of 0b10 Research branches 2540 | -9/Exiles | Met EX-DEC 2578 | -9/Exiles | Discovered new exit (range 14) 2592 | -9/Exiles | Left Exiles lab with Field Lobotomy Kit 2592 | -9/Exiles | Entered Mines 2955 | -8/Mines | Discovered new exit (range 4) 2963 | -8/Mines | Entered Materials 2963 | -8/Materials | Evolved 2 slots: Utility x2 3231 | -8/Materials | Identified exit to Factory 3348 | -8/Materials | Build established: Scavenger-Mutant 3417 | -8/Materials | Self-destructed Last Messages --------------- 03395_ Acquired Lgt. Treads. 03396_ U-05 Engineer lays Concrete. 03396_ G-47 Trooper destroyed. 03398_ Terrain Scan Processor fried. 03398_ U-05 Engineer destroyed. 03398_ Chain reaction triggered in Corrupted Lgt. Nuclear Core. 03398_ G-47 Trooper destroyed. 03402_ Lgt. Treads destroyed. 03405_ K-01 Serf collects debris. 03407_ Adv. Visual Processing Unit destroyed. 03407_ Critical hit (Blast). 03407_ U-05 Engineer lays Concrete. 03407_ U-05 Engineer destroyed. 03408_ K-01 Serf collects debris. 03409_ Critical hit (Burn: +37). 03409_ Chain reaction triggered in Lgt. Nuclear Core. 03409_ G-47 Trooper destroyed. 03412_ K-01 Serf collects debris. 03415_ G-47 Trooper IFF system glitched. 03416_ K-01 Serf collects debris. Map ----- +----------------------------------------------------+ | ????????????????????????????????????????????? | | ????????????????????????????????????????????? | | ????????????????????????????????????????????? | | ????????????????????????????????????????????? | | ????????????????????????????????????????????? | | ????????????????????????????????????????????? | | ????????????????????????????????????????????? | | ????????????????????????????????????????????? | | ????????????????????????????????????????????? | | ????????????????????????????????????????????? | | ????????????????????????????????????????????? | | ?????????????????????????????????????